Workbook

Sheet 企业公示
A1: 2023年封丘县土地流转奖补项目公告公示（2）
A2: 日期： | B2: 2023-08-01 | L2: 单位：元
A3: 序号 | B3: 经营主体住所 | C3: 经营主体名称 | D3: 经营主体银行账号 | E3: 项目名称 | F3: 资金来源 | G3: 建设期限 | H3: 流转土地面积（亩） | I3: 补助标准 | J3: 补助金额 | K3: 绩效目标 | L3: 带贫减贫机制 | M3: 备注
A5: 1 | B5: 黄陵镇陈寨村 | C5: 封丘县建伟农业家庭农场 | D5: 25709011300000187 | E5: 土地流转奖补项目 | F5: 统筹整合资金 | G5: 2023年1月-12月 | H5: 17.53 | I5: 经营主体每亩补助300元 | J5: =17.53*300 -> 5259 | K5: 经营主体增收5259元，加快脱贫步伐，群众满意。 | L5: 对3户流转土地17.53亩的经营主体每亩300元进行奖补，实现增收脱贫。
A6: 2 | B6: 黄陵镇高村 | C6: 封丘县献振种植专业合作社 | D6: 25709001800000114 | E6: 土地流转奖补项目 | F6: 统筹整合资金 | G6: 2023年1月-12月 | H6: 28.98 | I6: 经营主体每亩补助300元 | J6: 8694 | K6: 经营主体增收8694元，加快脱贫步伐，群众满意。 | L6: 对10户流转土地28.98亩的经营主体每亩300元进行奖补，实现增收脱贫。
A7: 3 | B7: 封丘县李庄镇前辛庄村 | C7: 封丘县创富苗木种植专业合作社 | D7: 25709011600000058 | E7: 土地流转奖补项目 | F7: 统筹整合资金 | G7: 2023年1月-12月 | H7: 124.22 | I7: 经营主体每亩补助300元 | J7: =H7*300 -> 37266 | K7: 经营主体增收 32208元，加快脱贫步伐，群众满意 | L7: 对 61户流转土地 124.22 亩的经营主体每亩300元进行奖补，对建档立卡户每亩奖补200元，实现增收脱贫
A8: 4 | B8: 封丘县李庄镇苦庄村 | C8: 封丘县安乐种植家庭农场 | D8: 16415601040003349 | E8: 土地流转奖补项目 | F8: 统筹整合资金 | G8: 2023年1月-12月 | H8: 10.36 | I8: 经营主体每亩补助300元 | J8: =H8*300 -> 3108 | K8: 经营主体增收3108元，加快脱贫步伐，群众满意 | L8: 对 2户流转土地10.36亩的经营主体每亩300元进行奖补，对建档立卡户每亩奖补200元，实现增收脱贫
A9: 5 | B9: 封丘县李庄镇俄湾村 | C9: 封丘县李庄镇宝亮家庭农场 | D9: 2570901150000110 | E9: 土地流转奖补项目 | F9: 统筹整合资金 | G9: 2023年1月-12月 | H9: 43.03 | I9: 经营主体每亩补助300元 | J9: =H9*300 -> 12909 | K9: 经营主体增收 12909元，加快脱贫步伐，群众满意 | L9: 对 28户流转土地 43.03亩的经营主体每亩300元进行奖补，对建档立卡户每亩奖补200元，实现增收脱贫
A10: 6 | B10: 封丘县李庄镇俄湾村、南曹村 | C10: 封丘县峰桐农业发展有限公司 | D10: 16415601040002705 | E10: 土地流转奖补项目 | F10: 统筹整合资金 | G10: 2023年1月-12月 | H10: 72.39 | I10: 经营主体每亩补助300元 | J10: 21717 | K10: 经营主体增收 21717元，加快脱贫步伐，群众满意 | L10: 对 29 户流转土地 72.39亩的经营主体每亩300元进行奖补，对建档立卡户每亩奖补200元，实现增收脱贫
A11: 7 | B11: 封丘县李庄镇竹岗村 | C11: 封丘县海鹏种植家庭农场 | D11: 16415601040003018 | E11: 土地流转奖补项目 | F11: 统筹整合资金 | G11: 2023年1月-12月 | H11: 7.33 | I11: 经营主体每亩补助300元 | J11: =H11*300 -> 2199 | K11: 经营主体增收2199 元，加快脱贫步伐，群众满意 | L11: 对 7户流转土地7.33亩的经营主体每亩300元进行奖补，对建档立卡户每亩奖补200元，实现增收脱贫
A12: 8 | B12: 封丘县李庄镇朱寨村 | C12: 封丘县金鑫土地流转专业合作社 | D12: 41050163760800002705 | E12: 土地流转奖补项目 | F12: 统筹整合资金 | G12: 2023年1月-12月 | H12: 97.009 | I12: 经营主体每亩补助300元 | J12: 29102.7 | K12: 经营主体增收 29102.7 元，加快脱贫步伐，群众满意 | L12: 对 72户流转土地 97.009 亩的经营主体每亩300元进行奖补，对建档立卡户每亩奖补200元，实现增收脱贫
A13: 9 | B13: 封丘县李庄镇苦庄村 | C13: 封丘县李庄镇苦庄梦飞种养专业合作社 | D13: 16415601040002150 | E13: 土地流转奖补项目 | F13: 统筹整合资金 | G13: 2023年1月-12月 | H13: 49 | I13: 经营主体每亩补助300元 | J13: 14700 | K13: 经营主体增收 15975 元，加快脱贫步伐，群众满意 | L13: 对 9户流转土地49 亩的经营主体每亩300元进行奖补，对建档立卡户每亩奖补200元，实现增收脱贫
A14: 10 | B14: 封丘县李庄镇堤湾村 | C14: 封丘县李庄镇聚源种植专业合作社 | D14: 16415601040002960 | E14: 土地流转奖补项目 | F14: 统筹整合资金 | G14: 2023年1月-12月 | H14: 42.55 | I14: 经营主体每亩补助300元 | J14: 12765 | K14: 经营主体增收 12765 元，加快脱贫步伐，群众满意 | L14: 对 7 户流转土地 42.55亩的经营主体每亩300元进行奖补，对建档立卡户每亩奖补200元，实现增收脱贫
A15: 11 | B15: 封丘县李庄镇竹岗村 | C15: 封丘县李庄镇桃缘种养专业合作社 | D15: 257090114000000078 | E15: 土地流转奖补项目 | F15: 统筹整合资金 | G15: 2023年1月-12月 | H15: 10.76 | I15: 经营主体每亩补助300元 | J15: 3228 | K15: 经营主体增收3228元，加快脱贫步伐，群众满意 | L15: 对 10户流转土地 10.76亩的经营主体每亩300元进行奖补，对建档立卡户每亩奖补200元，实现增收脱贫
A16: 12 | B16: 封丘县李庄镇贯台村 | C16: 封丘县黄河农产种植家庭农场 | D16: 25709011200000140 | E16: 土地流转奖补项目 | F16: 统筹整合资金 | G16: 2023年1月-12月 | H16: 12.674 | I16: 经营主体每亩补助300元 | J16: 3802.2 | K16: 经营主体增收 2182.2 元，加快脱贫步伐，群众满意 | L16: 对 9户流转土地 12.674亩的经营主体每亩300元进行奖补，对建档立卡户每亩奖补200元，实现增收脱贫
A17: 13 | B17: 封丘县李庄镇贯台村、张曹村、后辛庄村、前辛庄村 | C17: 河南格瑞佳农业科技有限公司 | D17: 41050167281100001642 | E17: 土地流转奖补项目 | F17: 统筹整合资金 | G17: 2023年1月-12月 | H17: 565.93 | I17: 经营主体每亩补助300元 | J17: 169779 | K17: 经营主体增收154708.5 元，加快脱贫步伐，群众满意 | L17: 对 135 户流转土地 565.93亩的经营主体每亩300元进行奖补，对建档立卡户每亩奖补200元，实现增收脱贫
A18: 14 | B18: 封丘县李庄镇常东村 | C18: 河南绿碧源农林开发有限公司 | D18: 16415601040000881 | E18: 土地流转奖补项目 | F18: 统筹整合资金 | G18: 2023年1月-12月 | H18: 126.66 | I18: 经营主体每亩补助300元 | J18: 37998 | K18: 经营主体增收 37988元，加快脱贫步伐，群众满意 | L18: 对 19户流转土地 126.66 亩的经营主体每亩300元进行奖补，对建档立卡户每亩奖补200元，实现增收脱贫
A19: 15 | B19: 封丘县李庄镇南曹村、前辛庄村 | C19: 封丘县东浩种植合作社 | D19: 16415601040002549 | E19: 土地流转奖补项目 | F19: 统筹整合资金 | G19: 2023年1月-12月 | H19: 166.385 | I19: 经营主体每亩补助300元 | J19: 49915.5 | K19: 经营主体增收 49915.5 元，加快脱贫步伐，群众满意 | L19: 对 57户流转土地166.385 亩的经营主体每亩300元进行奖补，对建档立卡户每亩奖补200元，实现增收脱贫
A20: 16 | B20: 李庄镇后辛庄村 | C20: 封丘县天蓝农业种植养殖专业合作社 | D20: 41050163760800002731 | E20: 土地流转奖补项目 | F20: 统筹整合资金 | G20: 2023年1月-12月 | H20: 38.47 | I20: 经营主体每亩补助300元 | J20: 11541 | K20: 经营主体增收 11541 元，加快脱贫步伐，群众满意 | L20: 对 16户流转土地 38.47 亩的经营主体每亩300元进行奖补，对建档立卡户每亩奖补200元，实现增收脱贫
A21: 17 | B21: 李庄镇后辛庄村 | C21: 封丘县大河湾农业发展有限公司 | D21: 25709011400000101 | E21: 土地流转奖补项目 | F21: 统筹整合资金 | G21: 2023年1月-12月 | H21: 7.22 | I21: 经营主体每亩补助300元 | J21: 2166 | K21: 经营主体增收 2166元，加快脱贫步伐，群众满意 | L21: 对 5户流转土地 7.22 亩的经营主体每亩300元进行奖补，对建档立卡户每亩奖补200元，实现增收脱贫
A22: 18 | B22: 封丘县李庄镇贯台村 | C22: 封丘县彤鑫农业家庭农场 | D22: 25709011200000178 | E22: 土地流转奖补项目 | F22: 统筹整合资金 | G22: 2023年1月-12月 | H22: 12.8 | I22: 经营主体每亩补助300元 | J22: 3840 | K22: 经营主体增收3840元，加快脱贫步伐，群众满意 | L22: 对 3 户流转土地 12.8亩的经营主体每亩300元进行奖补，对建档立卡户每亩奖补200元，实现增收脱贫
A23: 19 | B23: 封丘县李庄镇竹岗村 | C23: 河南京香豫生物科技有限公司 | D23: 25709011100000094 | E23: 土地流转奖补项目 | F23: 统筹整合资金 | G23: 2023年1月-12月 | H23: 34 | I23: 经营主体每亩补助300元 | J23: 10200 | K23: 经营主体增收10200 元，加快脱贫步伐，群众满意 | L23: 对 9户流转土地 34 亩的经营主体每亩300元进行奖补，对建档立卡户每亩奖补200元，实现增收脱贫
A24: 20 | B24: 封丘县李庄镇竹岗村 | C24: 封丘县李庄镇雷德生家庭农场 | D24: 25709011400000139 | E24: 土地流转奖补项目 | F24: 统筹整合资金 | G24: 2023年1月-12月 | H24: 3.97 | I24: 经营主体每亩补助300元 | J24: 1191 | K24: 经营主体增收1191 元，加快脱贫步伐，群众满意 | L24: 对1户流转土地3.97 亩的经营主体每亩300元进行奖补，对建档立卡户每亩奖补200元，实现增收脱贫
A25: 21 | B25: 封丘县李庄镇贯台村 | C25: 封丘县闰土家庭农场 | D25: 25709011600000136 | E25: 土地流转奖补项目 | F25: 统筹整合资金 | G25: 2023年1月-12月 | H25: 51.824 | I25: 经营主体每亩补助300元 | J25: 15547.2 | K25: 经营主体增收 15547.2 元，加快脱贫步伐，群众满意 | L25: 对 23 户流转土地 51.824 亩的经营主体每亩300元进行奖补，对建档立卡户每亩奖补200元，实现增收脱贫
A26: 22 | B26: 封丘县李庄镇竹岗村 | C26: 封丘县李庄镇从众种植专业合作社 | D26: 1704022509200115779 | E26: 土地流转奖补项目 | F26: 统筹整合资金 | G26: 2023年1月-12月 | H26: 38.399 | I26: 经营主体每亩补助300元 | J26: 11519.7 | K26: 经营主体增收11519.7 元，加快脱贫步伐，群众满意 | L26: 对 10户流转土地 38.399 亩的经营主体每亩300元进行奖补，对建档立卡户每亩奖补200元，实现增收脱贫
A27: 23 | B27: 封丘县李庄镇李庄村 | C27: 封丘县顺科种植家庭农场 | D27: 25709011100000046 | E27: 土地流转奖补项目 | F27: 统筹整合资金 | G27: 2023年1月-12月 | H27: 16.11 | I27: 经营主体每亩补助300元 | J27: 4833 | K27: 经营主体增收 4833元，加快脱贫步伐，群众满意 | L27: 对 9户流转土地 16.11亩的经营主体每亩300元进行奖补，对建档立卡户每亩奖补200元，实现增收脱贫
A28: 24 | B28: 封丘县李庄镇贯台村 | C28: 封丘县昌泽种植专业合作社 | D28: 25709011100000188 | E28: 土地流转奖补项目 | F28: 统筹整合资金 | G28: 2023年1月-12月 | H28: 70.564 | I28: 经营主体每亩补助300元 | J28: 21169.2 | K28: 经营主体增收 21169.2 元，加快脱贫步伐，群众满意 | L28: 对2户流转土地70.564 亩的经营主体每亩300元进行奖补，对建档立卡户每亩奖补200元，实现增收脱贫
A29: 25 | B29: 李庄镇薛郭庄村 | C29: 新乡市鸿程林业有限责任公司 | D29: 16415601040001772 | E29: 土地流转奖补项目 | F29: 统筹整合资金 | G29: 2023年1月-12月 | H29: 53.3511 | I29: 经营主体每亩补助300元 | J29: 16005.33 | K29: 经营主体增收 16005.33 元，加快脱贫步伐，群众满意 | L29: 对 11户流转土地53.3511 亩的经营主体每亩300元进行奖补，对建档立卡户每亩奖补200元，实现增收脱贫
A30: 26 | B30: 封丘县李庄镇贯台村 | C30: 封丘县李庄镇恩英家庭农场 | D30: 25709011500000186 | E30: 土地流转奖补项目 | F30: 统筹整合资金 | G30: 2023年1月-12月 | H30: 43 | I30: 经营主体每亩补助300元 | J30: 12900 | K30: 经营主体增收 12900 元，加快脱贫步伐，群众满意 | L30: 对 3户流转土地43 亩的经营主体每亩300元进行奖补，对建档立卡户每亩奖补200元，实现增收脱贫
A31: 27 | B31: 封丘县李庄镇堤湾村 | C31: 封丘县李庄镇丰硕家庭农场 | D31: 255981076668 | E31: 土地流转奖补项目 | F31: 统筹整合资金 | G31: 2023年1月-12月 | H31: 16.4 | I31: 经营主体每亩补助300元 | J31: 4920 | K31: 经营主体增收4920 元，加快脱贫步伐，群众满意 | L31: 对 8户流转土地 16.4 亩的经营主体每亩300元进行奖补，对建档立卡户每亩奖补200元，实现增收脱贫
A32: 28 | B32: 封丘县李庄镇朱寨村 | C32: 封丘县李庄镇镇豫柱家庭农场 | D32: 25709011500000191 | E32: 土地流转奖补项目 | F32: 统筹整合资金 | G32: 2023年1月-12月 | H32: 10 | I32: 经营主体每亩补助300元 | J32: 3000 | K32: 经营主体增收 3000元，加快脱贫步伐，群众满意 | L32: 对 2 户流转土地 10 亩的经营主体每亩300元进行奖补，对建档立卡户每亩奖补200元，实现增收脱贫
A33: 29 | B33: 封丘县李庄镇贯台村 | C33: 周口市淮阳区曹河乡茂顺种植农场 | D33: 37717001900000074 | E33: 土地流转奖补项目 | F33: 统筹整合资金 | G33: 2023年1月-12月 | H33: 195.428 | I33: 经营主体每亩补助300元 | J33: =H33*300 -> 58628.4 | K33: 经营主体增收58628.4元，加快脱贫步伐，群众满意 | L33: 对 59户流转土地195.428亩的经营主体每亩300元进行奖补，对建档立卡户每亩奖补200元，实现增收脱贫
A34: 30 | B34: 陈固镇后李湾村 | C34: 封丘县士伟土地流转合作社 | D34: 25704001100000134 | E34: 土地流转奖补项目 | F34: 统筹整合资金 | G34: 2023年1月-12月 | H34: 15.87 | I34: 经营主体每亩补助300元 | J34: 4761 | K34: 经营主体增收4761元，加快脱贫步伐，群众满意。 | L34: 对2户流转土地15.87亩的经营主体每亩300元进行奖补，实现增收脱贫。
A35: 31 | B35: 陈固镇东守宫村 | C35: 封丘县新中土地流转合作社 | D35: 25704001400000118 | E35: 土地流转奖补项目 | F35: 统筹整合资金 | G35: 2023年1月-12月 | H35: 17.19 | I35: 经营主体每亩补助300元 | J35: 5157 | K35: 经营主体增收5151元，加快脱贫步伐，群众满意。 | L35: 对3户流转土地17.19亩的经营主体每亩300元进行奖补，实现增收脱贫。
A36: 32 | B36: 陈固镇梅口村 | C36: 封丘县西域土地流转专业合作社 | D36: 25704001900000168 | E36: 土地流转奖补项目 | F36: 统筹整合资金 | G36: 2023年1月-12月 | H36: 59.65 | I36: 经营主体每亩补助300元 | J36: 17895 | K36: 经营主体增收17895元，加快脱贫步伐，群众满意。 | L36: 对6户流转土地59.65亩的经营主体每亩300元进行奖补，实现增收脱贫。
A37: 33 | B37: 封丘县陈桥陈镇陈桥 | C37: 封丘县陈桥古镇旅游开发有限公司 | D37: 41050163760800001627 | E37: 土地流转奖补项目 | F37: 统筹整合资金 | G37: 2023年1月-12月 | H37: 42.09 | I37: 经营主体每亩补助300元 | J37: 12627 | K37: 经营主体增收12627元，加快脱贫步伐，群众满意。 | L37: 对19户流转土地42.09亩的经营主体每亩300元进行奖补，实现增收脱贫。
A38: 34 | B38: 陈桥镇贺寨村 | C38: 封丘县盛道生态种植专业合作社 | D38: 25708021500000025 | E38: 土地流转奖补项目 | F38: 统筹整合资金 | G38: 2023年1月-12月 | H38: 12.81 | I38: 经营主体每亩补助300元 | J38: 3843 | K38: 经营主体增收3843元，加快脱贫步伐，群众满意。 | L38: 对4户流转土地12.81亩的经营主体每亩300元进行奖补，实现增收脱贫。
A39: 35 | B39: 荆隆宫乡丁庄村 | C39: 封丘县携缘合种植专业合作社 | D39: 25702111000000092 | E39: 土地流转奖补项目 | F39: 统筹整合资金 | G39: 2022年1月-12月 | H39: 30.65 | I39: 经营主体每亩补助300元 | J39: =H39*300 -> 9195 | K39: 经营主体增收9195元，加快脱贫步伐，群众满意 | L39: 对4户流转土地30.65亩的经营主体每亩300元进行奖补，对建档立卡户每亩奖补200元，实现增收脱贫
A40: 36 | B40: 荆隆宫乡水驿村 | C40: 封丘县宏晟家庭农场 | D40: 25707001600000187 | E40: 土地流转奖补项目 | F40: 统筹整合资金 | G40: 2022年1月-12月 | H40: 22.49 | I40: 经营主体每亩补助300元 | J40: =300*H40 -> 6747 | K40: 经营主体增收6747元，加快脱贫步伐，群众满意 | L40: 对3户流转土地22.49亩的经营主体每亩300元进行奖补，建档立卡户每亩奖补200元实现增收脱贫。
A41: 37 | B41: 荆隆宫乡小齐寨村 | C41: 封丘县沁雅桃园家庭农场 | D41: 25707011300000032 | E41: 土地流转奖补项目 | F41: 统筹整合资金 | G41: 2022年1月-12月 | H41: 6.5 | I41: 经营主体每亩补助300元 | J41: =300*H41 -> 1950 | K41: 经营主体增收1950元，加快脱贫步伐，群众满意 | L41: 对1户流转土地6.5亩的经营主体每亩300元进行奖补，建档立卡户每亩奖补202元实现增收脱贫。
A42: 38 | B42: 黄德镇黄德村 | C42: 封丘县鑫豫种植专业合作社 | D42: 25703001800000046 | E42: 土地流转奖补项目 | F42: 统筹整合资金 | G42: 2023年1月-12月 | H42: 48.2 | I42: 经营主体每亩补助300元 | J42: 14460 | K42: 经营主体增收14460元，加快脱贫步伐，群众满意 | L42: 对6户流转土地48.2亩的经营主体每亩300元进行奖补，实现增收脱贫。
A43: 39 | B43: 黄德镇蒋西村 | C43: 封丘县黄河古道生态农业发展有限公司 | D43: 20341072700100000328871 | E43: 土地流转奖补项目 | F43: 统筹整合资金 | G43: 2023年1月-12月 | H43: 29.53 | I43: 经营主体每亩补助300元 | J43: 8859 | K43: 经营主体增收8859元，加快脱贫步伐，群众满意 | L43: 对5户流转土地29.53亩的经营主体每亩300元进行奖补，实现增收脱贫。
A44: 40 | B44: 居厢镇小沙村 | C44: 封丘县沙罡种植家庭农场 | D44: 25703011500000146 | E44: 土地流转奖补项目 | F44: 统筹整合资金 | G44: 2023年1月-12月 | H44: 55.68 | I44: 经营主体每亩补助300元 | J44: 16704 | K44: 经营主体增收16704元，加快脱贫步伐，群众满意。 | L44: 对12户流转土地55.68亩的经营主体每亩300元进行奖补，实现增收脱贫。
A45: 41 | B45: 居厢镇河东村 | C45: 封丘县济钦种植家庭农场 | D45: 25703011200000119 | E45: 土地流转奖补项目 | F45: 统筹整合资金 | G45: 2023年1月-12月 | H45: 8.36 | I45: 经营主体每亩补助300元 | J45: 2508 | K45: 经营主体增收2508元，加快脱贫步伐，群众满意。 | L45: 对1户流转土地8.36亩的经营主体每亩300元进行奖补，实现增收脱贫。
A46: 42 | B46: 王村乡北孟庄村 | C46: 封丘县携缘合种植专业合作社 | D46: 25702111000000092 | E46: 土地流转奖补项目 | F46: 统筹整合资金 | G46: 2023年1月-12月 | H46: 47.6 | I46: 经营主体每亩补助300元 | J46: 14280 | K46: 经营主体增收14280元，加快脱贫步伐，群众满意。 | L46: 对11户流转土地47.6亩的经营主体每亩300元进行奖补，实现增收脱贫。
A47: 43 | B47: 王村乡尚庄村 | C47: 封丘县喜相逢种植专业合作社 | D47: 410744010170104801 | E47: 土地流转奖补项目 | F47: 统筹整合资金 | G47: 2023年1月-12月 | H47: 7.8 | I47: 经营主体每亩补助300元 | J47: 2340 | K47: 经营主体增收2340元，加快脱贫步伐，群众满意。 | L47: 对2户流转土地7.8亩的经营主体每亩300元进行奖补，实现增收脱贫。
A48: 44 | B48: 应举镇杨村 | C48: 封丘县小垒种植专业合作社 | D48: 25705001300000142 | E48: 土地流转奖补项目 | F48: 统筹整合资金 | G48: 2023年1月-12月 | H48: 12 | I48: 经营主体每亩补助300元 | J48: 3600 | K48: 经营主体增收3600元，巩固脱贫成果，使群众满意。 | L48: 对1户流转土地12亩的经营主体每亩300元进行奖补，实现增收。
A49: 45 | B49: 应举镇崔寨 | C49: 封丘县新纪中药材种植场 | D49: 16414301040008510 | E49: 土地流转奖补项目 | F49: 统筹整合资金 | G49: 2023年1月-12月 | H49: 29.83 | I49: 经营主体每亩补助300元 | J49: 8949 | K49: 经营主体增收8949元，巩固脱贫成果，使群众满意。 | L49: 对4户流转土地29.83亩的经营主体每亩300元进行奖补，实现增收。
A50: 46 | B50: 应举镇毛寨 | C50: 封丘县永利家庭农场 | D50: 25705001500000099 | E50: 土地流转奖补项目 | F50: 统筹整合资金 | G50: 2023年1月-12月 | H50: 39.8 | I50: 经营主体每亩补助300元 | J50: 11940 | K50: 经营主体增收11940元，巩固脱贫成果，使群众满意。 | L50: 对5户流转土地39.8亩的经营主体每亩300元进行奖补，实现增收。
A51: 47 | B51: 应举镇雅铺 | C51: 封丘县识慧种植专业合作社 | D51: 25706001800000101 | E51: 土地流转奖补项目 | F51: 统筹整合资金 | G51: 2023年1月-12月 | H51: 40.22 | I51: 经营主体每亩补助300元 | J51: 12066 | K51: 经营主体增收12066元，巩固脱贫成果，使群众满意。 | L51: 对4户流转土地40.22亩的经营主体每亩300元进行奖补，实现增收。
A52: 48 | B52: 赵岗镇惠寨村 | C52: 封丘县永峰家庭农场 | D52: 25716061300000166 | E52: 土地流转奖补项目 | F52: 统筹整合资金 | G52: 2023年1月-12月 | H52: 35.1 | I52: 经营主体每亩补助300元 | J52: 10530 | K52: 经营主体增收10530元，加快脱贫步伐，群众满意。 | L52: 对5户流转土地35.1亩的经营主体每亩300元进行奖补，实现增收脱贫。
A53: 49 | B53: 留光镇镇西林庄 | C53: 封丘县俊波种植专业合作社 | D53: 2571200140000199 | E53: 土地流转奖补项目 | F53: 统筹整合资金 | G53: 2023年1月-12月 | H53: 10.89 | I53: 经营主体每亩补助300元 | J53: 3267 | K53: 经营主体增收3267元，加快脱贫步伐，群众满意。 | L53: 对2户流转土地10.89亩的经营主体每亩300元进行奖补，实现增收脱贫。
A54: 50 | B54: 留光镇镇西林庄 | C54: 封丘县吉丰种植专业合作社 | D54: 25712001700000013 | E54: 土地流转奖补项目 | F54: 统筹整合资金 | G54: 2022年1月-12月 | H54: 64.08 | I54: 经营主体每亩补助300元 | J54: 19224 | K54: 经营主体增收29745元，加快脱贫步伐，群众满意。 | L54: 对17户流转土地64.08亩的经营主体每亩300元进行奖补，实现增收脱贫。
A55: 51 | B55: 留光镇镇耿村 | C55: 封丘县晨曦农业种植专业合作社 | D55: 25712001500000085 | E55: 土地流转奖补项目 | F55: 统筹整合资金 | G55: 2023年1月-12月 | H55: 46.12 | I55: 经营主体每亩补助300元 | J55: 13836 | K55: 经营主体增收元，加快脱贫步伐，群众满意。 | L55: 对14户流转土地46.12亩的经营主体每亩300元进行奖补，实现增收脱贫。
A56: 52 | B56: 留光镇李王庄 | C56: 封丘县青青草种植专业合作社 | D56: 25712001500000127 | E56: 土地流转奖补项目 | F56: 统筹整合资金 | G56: 2023年1月-12月 | H56: 84.67 | I56: 经营主体每亩补助300元 | J56: 25401 | K56: 经营主体增收25401元，加快脱贫步伐，群众满意。 | L56: 对51流转土地84.67亩的经营主体每亩300元进行奖补，实现增收脱贫。
B57: 合 计 | H57: =SUM(H5:H56) -> 2733.4741 | J57: =SUM(J5:J56) -> 820042.23
B58: 项目主管单位 | C58: 封丘县农业农村局 | E58: 责任单位 | F58: 相关乡镇 | H58: 监督电话 | I58: 8292438 | J58: 8382701

Sheet 乡村公示
A1: 2023年封丘县土地流转奖补项目公告公示（1）
A2: 日 期： | K2: 单位：元
A3: 序 号 | B3: 乡（镇）村 | C3: 户 名 | D3: 项目名称 | E3: 资金来源 | F3: 建设期限 | G3: 流转土地面积（亩） | H3: 补助标准 | I3: 补助金额 | J3: 绩效目标 | K3: 带贫减贫机制 | L3: 备注
A4: 1 | B4: 黄陵镇陈寨村 | C4: 陈付运 | D4: 土地流转奖补项目 | E4: 统筹整合资金 | F4: 2023年1月-12月 | G4: 6.03 | H4: 贫困户每亩补助200元 | I4: =200*G4 -> 1206.00 | J4: 贫困户增收1206元，加快脱贫步伐，群众满意。 | K4: 对3户流转土地17.53亩的贫困户每亩200元进行奖补，实现增收脱贫。
A5: 2 | B5: 黄陵镇陈寨村 | C5: 陈学亮 | D5: 土地流转奖补项目 | E5: 统筹整合资金 | F5: 2023年1月-12月 | G5: 3.3 | H5: 贫困户每亩补助200元 | I5: =200*G5 -> 660.00 | J5: 贫困户增收660元，加快脱贫步伐，群众满意。
A6: 3 | B6: 黄陵镇陈寨村 | C6: 李长莲 | D6: 土地流转奖补项目 | E6: 统筹整合资金 | F6: 2023年1月-12月 | G6: 8.2 | H6: 贫困户每亩补助200元 | I6: =200*G6 -> 1640.00 | J6: 贫困户增收1640元，加快脱贫步伐，群众满意。
A7: 4 | B7: 黄陵镇高村 | C7: 李守潮 | D7: 土地流转奖补项目 | E7: 统筹整合资金 | F7: 2023年1月-12月 | G7: 2.1 | H7: 贫困户每亩补助200元 | I7: =200*G7 -> 420.00 | J7: 贫困户增收420元，加快脱贫步伐，群众满意。 | K7: 对10户流转土地28.98亩的贫困户每亩200元进行奖补，实现增收脱贫。
A8: 5 | B8: 黄陵镇高村 | C8: 李廷振 | D8: 土地流转奖补项目 | E8: 统筹整合资金 | F8: 2023年1月-12月 | G8: 1.8 | H8: 贫困户每亩补助200元 | I8: 360.00 | J8: 贫困户增收360元，加快脱贫步伐，群众满意。
A9: 6 | B9: 黄陵镇高村 | C9: 李守田 | D9: 土地流转奖补项目 | E9: 统筹整合资金 | F9: 2023年1月-12月 | G9: 6 | H9: 贫困户每亩补助200元 | I9: 1200.00 | J9: 贫困户增收1200元，加快脱贫步伐，群众满意。
A10: 7 | B10: 黄陵镇高村 | C10: 孙留记 | D10: 土地流转奖补项目 | E10: 统筹整合资金 | F10: 2023年1月-12月 | G10: 2.25 | H10: 贫困户每亩补助200元 | I10: 450.00 | J10: 贫困户增收450元，加快脱贫步伐，群众满意。
A11: 8 | B11: 黄陵镇高村 | C11: 李守根 | D11: 土地流转奖补项目 | E11: 统筹整合资金 | F11: 2023年1月-12月 | G11: 5.07 | H11: 贫困户每亩补助200元 | I11: 1014.00 | J11: 贫困户增收1014元，加快脱贫步伐，群众满意。
A12: 9 | B12: 黄陵镇高村 | C12: 李守坤 | D12: 土地流转奖补项目 | E12: 统筹整合资金 | F12: 2023年1月-12月 | G12: 2.9 | H12: 贫困户每亩补助200元 | I12: 580.00 | J12: 贫困户增收580元，加快脱贫步伐，群众满意。
A13: 10 | B13: 黄陵镇高村 | C13: 刘景连 | D13: 土地流转奖补项目 | E13: 统筹整合资金 | F13: 2023年1月-12月 | G13: 2.54 | H13: 贫困户每亩补助200元 | I13: 508.00 | J13: 贫困户增收508元，加快脱贫步伐，群众满意。
A14: 11 | B14: 黄陵镇高村 | C14: 韩同卫 | D14: 土地流转奖补项目 | E14: 统筹整合资金 | F14: 2023年1月-12月 | G14: 2.64 | H14: 贫困户每亩补助200元 | I14: 528.00 | J14: 贫困户增收528元，加快脱贫步伐，群众满意。
A15: 12 | B15: 黄陵镇高村 | C15: 李守平 | D15: 土地流转奖补项目 | E15: 统筹整合资金 | F15: 2023年1月-12月 | G15: 2.71 | H15: 贫困户每亩补助200元 | I15: 542.00 | J15: 贫困户增收542元，加快脱贫步伐，群众满意。
A16: 13 | B16: 黄陵镇高村 | C16: 孙正国 | D16: 土地流转奖补项目 | E16: 统筹整合资金 | F16: 2023年1月-12月 | G16: 0.97 | H16: 贫困户每亩补助200元 | I16: 194.00 | J16: 贫困户增收194元，加快脱贫步伐，群众满意。
A17: 14 | B17: 李庄镇前辛庄村 | C17: 曹振书 | D17: 土地流转奖补项目 | E17: 统筹整合资金 | F17: 2023年1月-12月 | G17: 0.8 | H17: 建档立卡户每亩补助200元 | I17: 160 | J17: =I17&"元，加快脱贫步伐，群众满意。" -> 160元，加快脱贫步伐，群众满意。 | K17: 对 61户流转土地 124.22 亩的经营主体每亩300元进行奖补，对建档立卡户每亩奖补200元，实现增收脱贫
A18: 15 | B18: 李庄镇前辛庄村 | C18: 管新平 | D18: 土地流转奖补项目 | E18: 统筹整合资金 | F18: 2023年1月-12月 | G18: 1.25 | H18: 建档立卡户每亩补助200元 | I18: 250 | J18: =I18&"元，加快脱贫步伐，群众满意。" -> 250元，加快脱贫步伐，群众满意。
A19: 16 | B19: 李庄镇前辛庄村 | C19: 韩天霞 | D19: 土地流转奖补项目 | E19: 统筹整合资金 | F19: 2023年1月-12月 | G19: 1.53 | H19: 建档立卡户每亩补助200元 | I19: =G19*200 -> 306 | J19: =I19&"元，加快脱贫步伐，群众满意。" -> 306元，加快脱贫步伐，群众满意。
A20: 17 | B20: 李庄镇前辛庄村 | C20: 贺小平 | D20: 土地流转奖补项目 | E20: 统筹整合资金 | F20: 2023年1月-12月 | G20: 2.24 | H20: 建档立卡户每亩补助200元 | I20: 448 | J20: 448元，加快脱贫步伐，群众满意。
A21: 18 | B21: 李庄镇前辛庄村 | C21: 靳林永 | D21: 土地流转奖补项目 | E21: 统筹整合资金 | F21: 2023年1月-12月 | G21: 1.89 | H21: 建档立卡户每亩补助200元 | I21: 378 | J21: 378元，加快脱贫步伐，群众满意。
A22: 19 | B22: 李庄镇前辛庄村 | C22: 靳清东 | D22: 土地流转奖补项目 | E22: 统筹整合资金 | F22: 2023年1月-12月 | G22: 1.08 | H22: 建档立卡户每亩补助200元 | I22: 216 | J22: 216元，加快脱贫步伐，群众满意。
A23: 20 | B23: 李庄镇前辛庄村 | C23: 靳士广 | D23: 土地流转奖补项目 | E23: 统筹整合资金 | F23: 2023年1月-12月 | G23: 1.08 | H23: 建档立卡户每亩补助200元 | I23: 216 | J23: 216元，加快脱贫步伐，群众满意。
A24: 21 | B24: 李庄镇前辛庄村 | C24: 靳士朋 | D24: 土地流转奖补项目 | E24: 统筹整合资金 | F24: 2023年1月-12月 | G24: 0.83 | H24: 建档立卡户每亩补助200元 | I24: 166 | J24: 166元，加快脱贫步伐，群众满意。
A25: 22 | B25: 李庄镇前辛庄村 | C25: 靳士伟 | D25: 土地流转奖补项目 | E25: 统筹整合资金 | F25: 2023年1月-12月 | G25: 3.255 | H25: 建档立卡户每亩补助200元 | I25: 651 | J25: 651元，加快脱贫步伐，群众满意。
A26: 23 | B26: 李庄镇前辛庄村 | C26: 曹素云 | D26: 土地流转奖补项目 | E26: 统筹整合资金 | F26: 2023年1月-12月 | G26: 2.45 | H26: 建档立卡户每亩补助200元 | I26: 490 | J26: 490元，加快脱贫步伐，群众满意。
A27: 24 | B27: 李庄镇前辛庄村 | C27: 李富恩 | D27: 土地流转奖补项目 | E27: 统筹整合资金 | F27: 2023年1月-12月 | G27: 1.25 | H27: 建档立卡户每亩补助200元 | I27: 250 | J27: 250元，加快脱贫步伐，群众满意。
A28: 25 | B28: 李庄镇前辛庄村 | C28: 李刚 | D28: 土地流转奖补项目 | E28: 统筹整合资金 | F28: 2023年1月-12月 | G28: 1.5 | H28: 建档立卡户每亩补助200元 | I28: 300 | J28: 300元，加快脱贫步伐，群众满意。
A29: 26 | B29: 李庄镇前辛庄村 | C29: 李娜 | D29: 土地流转奖补项目 | E29: 统筹整合资金 | F29: 2023年1月-12月 | G29: 1.32 | H29: 建档立卡户每亩补助200元 | I29: 264 | J29: 264元，加快脱贫步伐，群众满意。
A30: 27 | B30: 李庄镇前辛庄村 | C30: 梁胜利 | D30: 土地流转奖补项目 | E30: 统筹整合资金 | F30: 2023年1月-12月 | G30: 4.2 | H30: 建档立卡户每亩补助200元 | I30: 840 | J30: 840元，加快脱贫步伐，群众满意。
A31: 28 | B31: 李庄镇前辛庄村 | C31: 梁现中 | D31: 土地流转奖补项目 | E31: 统筹整合资金 | F31: 2023年1月-12月 | G31: 1.65 | H31: 建档立卡户每亩补助200元 | I31: 330 | J31: 330元，加快脱贫步伐，群众满意。
A32: 29 | B32: 李庄镇前辛庄村 | C32: 刘宝贵 | D32: 土地流转奖补项目 | E32: 统筹整合资金 | F32: 2023年1月-12月 | G32: 1.75 | H32: 建档立卡户每亩补助200元 | I32: 350 | J32: 350元，加快脱贫步伐，群众满意。
A33: 30 | B33: 李庄镇前辛庄村 | C33: 刘志梅 | D33: 土地流转奖补项目 | E33: 统筹整合资金 | F33: 2023年1月-12月 | G33: 2.81 | H33: 建档立卡户每亩补助200元 | I33: 562 | J33: 562元，加快脱贫步伐，群众满意。
A34: 31 | B34: 李庄镇前辛庄村 | C34: 孟广仁 | D34: 土地流转奖补项目 | E34: 统筹整合资金 | F34: 2023年1月-12月 | G34: 2.86 | H34: 建档立卡户每亩补助200元 | I34: 572 | J34: 572元，加快脱贫步伐，群众满意。
A35: 32 | B35: 李庄镇前辛庄村 | C35: 孟广学 | D35: 土地流转奖补项目 | E35: 统筹整合资金 | F35: 2023年1月-12月 | G35: 2.2 | H35: 建档立卡户每亩补助200元 | I35: 440 | J35: 440元，加快脱贫步伐，群众满意。
A36: 33 | B36: 李庄镇前辛庄村 | C36: 孟现明 | D36: 土地流转奖补项目 | E36: 统筹整合资金 | F36: 2023年1月-12月 | G36: 4.2 | H36: 建档立卡户每亩补助200元 | I36: 840 | J36: 840元，加快脱贫步伐，群众满意。
A37: 34 | B37: 李庄镇前辛庄村 | C37: 孟照云 | D37: 土地流转奖补项目 | E37: 统筹整合资金 | F37: 2023年1月-12月 | G37: 4.1 | H37: 建档立卡户每亩补助200元 | I37: 820 | J37: 820元，加快脱贫步伐，群众满意。
A38: 35 | B38: 李庄镇前辛庄村 | C38: 牛好杰 | D38: 土地流转奖补项目 | E38: 统筹整合资金 | F38: 2023年1月-12月 | G38: 3.2 | H38: 建档立卡户每亩补助200元 | I38: 640 | J38: 640元，加快脱贫步伐，群众满意。
A39: 36 | B39: 李庄镇前辛庄村 | C39: 牛好亮 | D39: 土地流转奖补项目 | E39: 统筹整合资金 | F39: 2023年1月-12月 | G39: 1.65 | H39: 建档立卡户每亩补助200元 | I39: 330 | J39: 330元，加快脱贫步伐，群众满意。
A40: 37 | B40: 李庄镇前辛庄村 | C40: 牛好合 | D40: 土地流转奖补项目 | E40: 统筹整合资金 | F40: 2023年1月-12月 | G40: 1 | H40: 建档立卡户每亩补助200元 | I40: 200 | J40: 200元，加快脱贫步伐，群众满意。
A41: 38 | B41: 李庄镇前辛庄村 | C41: 牛尚杰 | D41: 土地流转奖补项目 | E41: 统筹整合资金 | F41: 2023年1月-12月 | G41: 3.6 | H41: 建档立卡户每亩补助200元 | I41: 720 | J41: 720元，加快脱贫步伐，群众满意。
A42: 39 | B42: 李庄镇前辛庄村 | C42: 牛新春 | D42: 土地流转奖补项目 | E42: 统筹整合资金 | F42: 2023年1月-12月 | G42: 2.81 | H42: 建档立卡户每亩补助200元 | I42: 562 | J42: 562元，加快脱贫步伐，群众满意。
A43: 40 | B43: 李庄镇前辛庄村 | C43: 牛振江 | D43: 土地流转奖补项目 | E43: 统筹整合资金 | F43: 2023年1月-12月 | G43: 1.92 | H43: 建档立卡户每亩补助200元 | I43: 384 | J43: 384元，加快脱贫步伐，群众满意。
A44: 41 | B44: 李庄镇前辛庄村 | C44: 邵秀英 | D44: 土地流转奖补项目 | E44: 统筹整合资金 | F44: 2023年1月-12月 | G44: 1.25 | H44: 建档立卡户每亩补助200元 | I44: 250 | J44: 250元，加快脱贫步伐，群众满意。
A45: 42 | B45: 李庄镇前辛庄村 | C45: 苏保华 | D45: 土地流转奖补项目 | E45: 统筹整合资金 | F45: 2023年1月-12月 | G45: 1.23 | H45: 建档立卡户每亩补助200元 | I45: 246 | J45: 246元，加快脱贫步伐，群众满意。
A46: 43 | B46: 李庄镇前辛庄村 | C46: 苏守乾 | D46: 土地流转奖补项目 | E46: 统筹整合资金 | F46: 2023年1月-12月 | G46: 1.125 | H46: 建档立卡户每亩补助200元 | I46: 225 | J46: 225元，加快脱贫步伐，群众满意。
A47: 44 | B47: 李庄镇前辛庄村 | C47: 孙宝磊 | D47: 土地流转奖补项目 | E47: 统筹整合资金 | F47: 2023年1月-12月 | G47: 6.96 | H47: 建档立卡户每亩补助200元 | I47: 1392 | J47: 1392元，加快脱贫步伐，群众满意。
A48: 45 | B48: 李庄镇前辛庄村 | C48: 孙秀成 | D48: 土地流转奖补项目 | E48: 统筹整合资金 | F48: 2023年1月-12月 | G48: 1.25 | H48: 建档立卡户每亩补助200元 | I48: 250 | J48: 250元，加快脱贫步伐，群众满意。
A49: 46 | B49: 李庄镇前辛庄村 | C49: 孙玉付 | D49: 土地流转奖补项目 | E49: 统筹整合资金 | F49: 2023年1月-12月 | G49: 1.12 | H49: 建档立卡户每亩补助200元 | I49: 224 | J49: 224元，加快脱贫步伐，群众满意。
A50: 47 | B50: 李庄镇前辛庄村 | C50: 田文成 | D50: 土地流转奖补项目 | E50: 统筹整合资金 | F50: 2023年1月-12月 | G50: 1.14 | H50: 建档立卡户每亩补助200元 | I50: 228 | J50: 228元，加快脱贫步伐，群众满意。
A51: 48 | B51: 李庄镇前辛庄村 | C51: 田文化 | D51: 土地流转奖补项目 | E51: 统筹整合资金 | F51: 2023年1月-12月 | G51: 2.2 | H51: 建档立卡户每亩补助200元 | I51: 440 | J51: 440元，加快脱贫步伐，群众满意。
A52: 49 | B52: 李庄镇前辛庄村 | C52: 田文周 | D52: 土地流转奖补项目 | E52: 统筹整合资金 | F52: 2023年1月-12月 | G52: 1.94 | H52: 建档立卡户每亩补助200元 | I52: 388 | J52: 388元，加快脱贫步伐，群众满意。
A53: 50 | B53: 李庄镇前辛庄村 | C53: 王宝玉 | D53: 土地流转奖补项目 | E53: 统筹整合资金 | F53: 2023年1月-12月 | G53: 2.66 | H53: 建档立卡户每亩补助200元 | I53: 532 | J53: 532元，加快脱贫步伐，群众满意。
A54: 51 | B54: 李庄镇前辛庄村 | C54: 王得刚 | D54: 土地流转奖补项目 | E54: 统筹整合资金 | F54: 2023年1月-12月 | G54: 1.08 | H54: 建档立卡户每亩补助200元 | I54: 216 | J54: 216元，加快脱贫步伐，群众满意。
A55: 52 | B55: 李庄镇前辛庄村 | C55: 王恩中 | D55: 土地流转奖补项目 | E55: 统筹整合资金 | F55: 2023年1月-12月 | G55: 1.35 | H55: 建档立卡户每亩补助200元 | I55: 270 | J55: 270元，加快脱贫步伐，群众满意。
A56: 53 | B56: 李庄镇前辛庄村 | C56: 王潘学 | D56: 土地流转奖补项目 | E56: 统筹整合资金 | F56: 2023年1月-12月 | G56: 1.25 | H56: 建档立卡户每亩补助200元 | I56: 250 | J56: 250元，加快脱贫步伐，群众满意。
A57: 54 | B57: 李庄镇前辛庄村 | C57: 王青龙 | D57: 土地流转奖补项目 | E57: 统筹整合资金 | F57: 2023年1月-12月 | G57: 1.38 | H57: 建档立卡户每亩补助200元 | I57: 276 | J57: 276元，加快脱贫步伐，群众满意。
A58: 55 | B58: 李庄镇前辛庄村 | C58: 王青山 | D58: 土地流转奖补项目 | E58: 统筹整合资金 | F58: 2023年1月-12月 | G58: 2.68 | H58: 建档立卡户每亩补助200元 | I58: 536 | J58: 536元，加快脱贫步伐，群众满意。
A59: 56 | B59: 李庄镇前辛庄村 | C59: 王清合 | D59: 土地流转奖补项目 | E59: 统筹整合资金 | F59: 2023年1月-12月 | G59: 4.46 | H59: 建档立卡户每亩补助200元 | I59: 892 | J59: 892元，加快脱贫步伐，群众满意。
A60: 57 | B60: 李庄镇前辛庄村 | C60: 徐凤春 | D60: 土地流转奖补项目 | E60: 统筹整合资金 | F60: 2023年1月-12月 | G60: 1.5 | H60: 建档立卡户每亩补助200元 | I60: 300 | J60: 300元，加快脱贫步伐，群众满意。
A61: 58 | B61: 李庄镇前辛庄村 | C61: 徐凤楼 | D61: 土地流转奖补项目 | E61: 统筹整合资金 | F61: 2023年1月-12月 | G61: 1.2 | H61: 建档立卡户每亩补助200元 | I61: 240 | J61: 240元，加快脱贫步伐，群众满意。
A62: 59 | B62: 李庄镇前辛庄村 | C62: 徐红伟 | D62: 土地流转奖补项目 | E62: 统筹整合资金 | F62: 2023年1月-12月 | G62: 2.1 | H62: 建档立卡户每亩补助200元 | I62: 420 | J62: 420元，加快脱贫步伐，群众满意。
A63: 60 | B63: 李庄镇前辛庄村 | C63: 徐建成 | D63: 土地流转奖补项目 | E63: 统筹整合资金 | F63: 2023年1月-12月 | G63: 1.2 | H63: 建档立卡户每亩补助200元 | I63: 240 | J63: 240元，加快脱贫步伐，群众满意。
A64: 61 | B64: 李庄镇前辛庄村 | C64: 许克排 | D64: 土地流转奖补项目 | E64: 统筹整合资金 | F64: 2023年1月-12月 | G64: 0.81 | H64: 建档立卡户每亩补助200元 | I64: 162 | J64: 162元，加快脱贫步伐，群众满意。
A65: 62 | B65: 李庄镇前辛庄村 | C65: 许广贵 | D65: 土地流转奖补项目 | E65: 统筹整合资金 | F65: 2023年1月-12月 | G65: 5.45 | H65: 建档立卡户每亩补助200元 | I65: 1090 | J65: 1090元，加快脱贫步伐，群众满意。
A66: 63 | B66: 李庄镇前辛庄村 | C66: 许广海 | D66: 土地流转奖补项目 | E66: 统筹整合资金 | F66: 2023年1月-12月 | G66: 1.12 | H66: 建档立卡户每亩补助200元 | I66: 224 | J66: 224元，加快脱贫步伐，群众满意。
A67: 64 | B67: 李庄镇前辛庄村 | C67: 许广亮 | D67: 土地流转奖补项目 | E67: 统筹整合资金 | F67: 2023年1月-12月 | G67: 0.75 | H67: 建档立卡户每亩补助200元 | I67: 150 | J67: 150元，加快脱贫步伐，群众满意。
A68: 65 | B68: 李庄镇前辛庄村 | C68: 许广专 | D68: 土地流转奖补项目 | E68: 统筹整合资金 | F68: 2023年1月-12月 | G68: 1.51 | H68: 建档立卡户每亩补助200元 | I68: 302 | J68: 302元，加快脱贫步伐，群众满意。
A69: 66 | B69: 李庄镇前辛庄村 | C69: 许全国 | D69: 土地流转奖补项目 | E69: 统筹整合资金 | F69: 2023年1月-12月 | G69: 1.96 | H69: 建档立卡户每亩补助200元 | I69: 392 | J69: 392元，加快脱贫步伐，群众满意。
A70: 67 | B70: 李庄镇前辛庄村 | C70: 张红军 | D70: 土地流转奖补项目 | E70: 统筹整合资金 | F70: 2023年1月-12月 | G70: 3.86 | H70: 建档立卡户每亩补助200元 | I70: 772 | J70: 772元，加快脱贫步伐，群众满意。
A71: 68 | B71: 李庄镇前辛庄村 | C71: 张建 | D71: 土地流转奖补项目 | E71: 统筹整合资金 | F71: 2023年1月-12月 | G71: 3.65 | H71: 建档立卡户每亩补助200元 | I71: 730 | J71: 730元，加快脱贫步伐，群众满意。
A72: 69 | B72: 李庄镇前辛庄村 | C72: 张良付 | D72: 土地流转奖补项目 | E72: 统筹整合资金 | F72: 2023年1月-12月 | G72: 0.3 | H72: 建档立卡户每亩补助200元 | I72: 60 | J72: 60元，加快脱贫步伐，群众满意。
A73: 70 | B73: 李庄镇前辛庄村 | C73: 张小臣 | D73: 土地流转奖补项目 | E73: 统筹整合资金 | F73: 2023年1月-12月 | G73: 0.6 | H73: 建档立卡户每亩补助200元 | I73: 120 | J73: 120元，加快脱贫步伐，群众满意。
A74: 71 | B74: 李庄镇前辛庄村 | C74: 张振东 | D74: 土地流转奖补项目 | E74: 统筹整合资金 | F74: 2023年1月-12月 | G74: 1.17 | H74: 建档立卡户每亩补助200元 | I74: 234 | J74: 234元，加快脱贫步伐，群众满意。
A75: 72 | B75: 李庄镇前辛庄村 | C75: 张振杰 | D75: 土地流转奖补项目 | E75: 统筹整合资金 | F75: 2023年1月-12月 | G75: 2.99 | H75: 建档立卡户每亩补助200元 | I75: 598 | J75: 598元，加快脱贫步伐，群众满意。
A76: 73 | B76: 李庄镇前辛庄村 | C76: 赵凤英 | D76: 土地流转奖补项目 | E76: 统筹整合资金 | F76: 2023年1月-12月 | G76: 0.75 | H76: 建档立卡户每亩补助200元 | I76: 150 | J76: 150元，加快脱贫步伐，群众满意。
A77: 74 | B77: 李庄镇前辛庄村 | C77: 周建党 | D77: 土地流转奖补项目 | E77: 统筹整合资金 | F77: 2023年1月-12月 | G77: 1.8 | H77: 建档立卡户每亩补助200元 | I77: 360 | J77: 360元，加快脱贫步伐，群众满意。
A78: 75 | B78: 李庄镇苦庄村 | C78: 赵玉山 | D78: 土地流转奖补项目 | E78: 统筹整合资金 | F78: 2023年1月-12月 | G78: 6.64 | H78: 建档立卡户每亩补助200元 | I78: 1328 | J78: 1328元，加快脱贫步伐，群众满意。 | K78: 对 2户流转土地10.36亩的经营主体每亩300元进行奖补，对建档立卡户每亩奖补200元，实现增收脱贫
A79: 76 | B79: 李庄镇苦庄村 | C79: 刘万振 | D79: 土地流转奖补项目 | E79: 统筹整合资金 | F79: 2023年1月-12月 | G79: 3.72 | H79: 建档立卡户每亩补助200元 | I79: 744 | J79: 744元，加快脱贫步伐，群众满意。
A80: 77 | B80: 李庄镇俄湾村 | C80: 吴海雨 | D80: 土地流转奖补项目 | E80: 统筹整合资金 | F80: 2023年1月-12月 | G80: 1.96 | H80: 建档立卡户每亩补助200元 | I80: 392 | J80: 392元，加快脱贫步伐，群众满意。 | K80: 对 28户流转土地 43.03 亩的经营主体每亩300元进行奖补，对建档立卡户每亩奖补200元，实现增收脱贫
A81: 78 | B81: 李庄镇俄湾村 | C81: 吴运坡 | D81: 土地流转奖补项目 | E81: 统筹整合资金 | F81: 2023年1月-12月 | G81: 1.13 | H81: 建档立卡户每亩补助200元 | I81: 226 | J81: 226元，加快脱贫步伐，群众满意。
A82: 79 | B82: 李庄镇俄湾村 | C82: 吴良坡 | D82: 土地流转奖补项目 | E82: 统筹整合资金 | F82: 2023年1月-12月 | G82: 1.11 | H82: 建档立卡户每亩补助200元 | I82: 222 | J82: 222元，加快脱贫步伐，群众满意。
A83: 80 | B83: 李庄镇俄湾村 | C83: 张秀枝 | D83: 土地流转奖补项目 | E83: 统筹整合资金 | F83: 2023年1月-12月 | G83: 1.12 | H83: 建档立卡户每亩补助200元 | I83: =G83*200 -> 224 | J83: =I83&"元，加快脱贫步伐，群众满意。" -> 224元，加快脱贫步伐，群众满意。
A84: 81 | B84: 李庄镇俄湾村 | C84: 吴进章 | D84: 土地流转奖补项目 | E84: 统筹整合资金 | F84: 2023年1月-12月 | G84: 2.1 | H84: 建档立卡户每亩补助200元 | I84: 420 | J84: 420元，加快脱贫步伐，群众满意。
A85: 82 | B85: 李庄镇俄湾村 | C85: 吴庆海 | D85: 土地流转奖补项目 | E85: 统筹整合资金 | F85: 2023年1月-12月 | G85: 0.92 | H85: 建档立卡户每亩补助200元 | I85: 184 | J85: 184元，加快脱贫步伐，群众满意。
A86: 83 | B86: 李庄镇俄湾村 | C86: 王颜朵 | D86: 土地流转奖补项目 | E86: 统筹整合资金 | F86: 2023年1月-12月 | G86: 1.07 | H86: 建档立卡户每亩补助200元 | I86: 214 | J86: 214元，加快脱贫步伐，群众满意。
A87: 84 | B87: 李庄镇俄湾村 | C87: 钱保学 | D87: 土地流转奖补项目 | E87: 统筹整合资金 | F87: 2023年1月-12月 | G87: 1.49 | H87: 建档立卡户每亩补助200元 | I87: 298 | J87: 298元，加快脱贫步伐，群众满意。
A88: 85 | B88: 李庄镇俄湾村 | C88: 吴运山 | D88: 土地流转奖补项目 | E88: 统筹整合资金 | F88: 2023年1月-12月 | G88: 0.9 | H88: 建档立卡户每亩补助200元 | I88: 180 | J88: 180元，加快脱贫步伐，群众满意。
A89: 86 | B89: 李庄镇俄湾村 | C89: 吴长庆 | D89: 土地流转奖补项目 | E89: 统筹整合资金 | F89: 2023年1月-12月 | G89: 0.91 | H89: 建档立卡户每亩补助200元 | I89: 182 | J89: 182元，加快脱贫步伐，群众满意。
A90: 87 | B90: 李庄镇俄湾村 | C90: 李秀荣 | D90: 土地流转奖补项目 | E90: 统筹整合资金 | F90: 2023年1月-12月 | G90: 0.61 | H90: 建档立卡户每亩补助200元 | I90: 122 | J90: 122元，加快脱贫步伐，群众满意。
A91: 88 | B91: 李庄镇俄湾村 | C91: 张孟贵 | D91: 土地流转奖补项目 | E91: 统筹整合资金 | F91: 2023年1月-12月 | G91: 2.83 | H91: 建档立卡户每亩补助200元 | I91: 566 | J91: 566元，加快脱贫步伐，群众满意。
A92: 89 | B92: 李庄镇俄湾村 | C92: 吴进平 | D92: 土地流转奖补项目 | E92: 统筹整合资金 | F92: 2023年1月-12月 | G92: 1.76 | H92: 建档立卡户每亩补助200元 | I92: 352 | J92: 352元，加快脱贫步伐，群众满意。
A93: 90 | B93: 李庄镇俄湾村 | C93: 吴庆建 | D93: 土地流转奖补项目 | E93: 统筹整合资金 | F93: 2023年1月-12月 | G93: 1.14 | H93: 建档立卡户每亩补助200元 | I93: 228 | J93: 228元，加快脱贫步伐，群众满意。
A94: 91 | B94: 李庄镇俄湾村 | C94: 吴清学 | D94: 土地流转奖补项目 | E94: 统筹整合资金 | F94: 2023年1月-12月 | G94: 2.02 | H94: 建档立卡户每亩补助200元 | I94: 404 | J94: 404元，加快脱贫步伐，群众满意。
A95: 92 | B95: 李庄镇俄湾村 | C95: 杜玉梅 | D95: 土地流转奖补项目 | E95: 统筹整合资金 | F95: 2023年1月-12月 | G95: 2.3 | H95: 建档立卡户每亩补助200元 | I95: 460 | J95: 460元，加快脱贫步伐，群众满意。
A96: 93 | B96: 李庄镇俄湾村 | C96: 吴海方 | D96: 土地流转奖补项目 | E96: 统筹整合资金 | F96: 2023年1月-12月 | G96: 0.85 | H96: 建档立卡户每亩补助200元 | I96: 170 | J96: 170元，加快脱贫步伐，群众满意。
A97: 94 | B97: 李庄镇俄湾村 | C97: 刘秀娥 | D97: 土地流转奖补项目 | E97: 统筹整合资金 | F97: 2023年1月-12月 | G97: 1.68 | H97: 建档立卡户每亩补助200元 | I97: 336 | J97: 336元，加快脱贫步伐，群众满意。
A98: 95 | B98: 李庄镇俄湾村 | C98: 曹兴汉 | D98: 土地流转奖补项目 | E98: 统筹整合资金 | F98: 2023年1月-12月 | G98: 1.08 | H98: 建档立卡户每亩补助200元 | I98: 216 | J98: 216元，加快脱贫步伐，群众满意。
A99: 96 | B99: 李庄镇俄湾村 | C99: 吴良乐 | D99: 土地流转奖补项目 | E99: 统筹整合资金 | F99: 2023年1月-12月 | G99: 1.78 | H99: 建档立卡户每亩补助200元 | I99: 356 | J99: 356元，加快脱贫步伐，群众满意。
A100: 97 | B100: 李庄镇俄湾村 | C100: 吴其良 | D100: 土地流转奖补项目 | E100: 统筹整合资金 | F100: 2023年1月-12月 | G100: 1.71 | H100: 建档立卡户每亩补助200元 | I100: 342 | J100: 342元，加快脱贫步伐，群众满意。
A101: 98 | B101: 李庄镇俄湾村 | C101: 吴广水 | D101: 土地流转奖补项目 | E101: 统筹整合资金 | F101: 2023年1月-12月 | G101: 2.16 | H101: 建档立卡户每亩补助200元 | I101: 432 | J101: 432元，加快脱贫步伐，群众满意。
A102: 99 | B102: 李庄镇俄湾村 | C102: 曹志勇 | D102: 土地流转奖补项目 | E102: 统筹整合资金 | F102: 2023年1月-12月 | G102: 0.83 | H102: 建档立卡户每亩补助200元 | I102: 166 | J102: 166元，加快脱贫步伐，群众满意。
A103: 100 | B103: 李庄镇俄湾村 | C103: 吴桂立 | D103: 土地流转奖补项目 | E103: 统筹整合资金 | F103: 2023年1月-12月 | G103: 1.71 | H103: 建档立卡户每亩补助200元 | I103: 342 | J103: 342元，加快脱贫步伐，群众满意。
A104: 101 | B104: 李庄镇俄湾村 | C104: 吴清增 | D104: 土地流转奖补项目 | E104: 统筹整合资金 | F104: 2023年1月-12月 | G104: 1.4 | H104: 建档立卡户每亩补助200元 | I104: 280 | J104: 280元，加快脱贫步伐，群众满意。
A105: 102 | B105: 李庄镇俄湾村 | C105: 吴长站 | D105: 土地流转奖补项目 | E105: 统筹整合资金 | F105: 2023年1月-12月 | G105: 1.28 | H105: 建档立卡户每亩补助200元 | I105: 256 | J105: 256元，加快脱贫步伐，群众满意。
A106: 103 | B106: 李庄镇俄湾村 | C106: 吴良学 | D106: 土地流转奖补项目 | E106: 统筹整合资金 | F106: 2023年1月-12月 | G106: 2.52 | H106: 建档立卡户每亩补助200元 | I106: 504 | J106: 504元，加快脱贫步伐，群众满意。
A107: 104 | B107: 李庄镇俄湾村 | C107: 吴清友 | D107: 土地流转奖补项目 | E107: 统筹整合资金 | F107: 2023年1月-12月 | G107: 2.66 | H107: 建档立卡户每亩补助200元 | I107: 532 | J107: 532元，加快脱贫步伐，群众满意。
A108: 105 | B108: 李庄镇俄湾村 | C108: 吴运坡 | D108: 土地流转奖补项目 | E108: 统筹整合资金 | F108: 2023年1月-12月 | G108: 1.69 | H108: 建档立卡户每亩补助200元 | I108: 338 | J108: 338元，加快脱贫步伐，群众满意。 | K108: 对 29 户流转土地 72.39 亩的经营主体每亩300元进行奖补，对建档立卡户每亩奖补200元，实现增收脱贫
A109: 106 | B109: 李庄镇俄湾村 | C109: 张秀枝 | D109: 土地流转奖补项目 | E109: 统筹整合资金 | F109: 2023年1月-12月 | G109: 0.83 | H109: 建档立卡户每亩补助200元 | I109: 166 | J109: 166元，加快脱贫步伐，群众满意。
A110: 107 | B110: 李庄镇俄湾村 | C110: 朱广枝 | D110: 土地流转奖补项目 | E110: 统筹整合资金 | F110: 2023年1月-12月 | G110: 2.1 | H110: 建档立卡户每亩补助200元 | I110: 420 | J110: 420元，加快脱贫步伐，群众满意。
A111: 108 | B111: 李庄镇俄湾村 | C111: 吴自便 | D111: 土地流转奖补项目 | E111: 统筹整合资金 | F111: 2023年1月-12月 | G111: 1.75 | H111: 建档立卡户每亩补助200元 | I111: 350 | J111: 350元，加快脱贫步伐，群众满意。
A112: 109 | B112: 李庄镇俄湾村 | C112: 吴进章 | D112: 土地流转奖补项目 | E112: 统筹整合资金 | F112: 2023年1月-12月 | G112: 1.67 | H112: 建档立卡户每亩补助200元 | I112: 334 | J112: 334元，加快脱贫步伐，群众满意。
A113: 110 | B113: 李庄镇俄湾村 | C113: 吴庆海 | D113: 土地流转奖补项目 | E113: 统筹整合资金 | F113: 2023年1月-12月 | G113: 1.35 | H113: 建档立卡户每亩补助200元 | I113: 270 | J113: 270元，加快脱贫步伐，群众满意。
A114: 111 | B114: 李庄镇俄湾村 | C114: 王颜朵 | D114: 土地流转奖补项目 | E114: 统筹整合资金 | F114: 2023年1月-12月 | G114: 0.75 | H114: 建档立卡户每亩补助200元 | I114: 150 | J114: 150元，加快脱贫步伐，群众满意。
A115: 112 | B115: 李庄镇俄湾村 | C115: 钱保学 | D115: 土地流转奖补项目 | E115: 统筹整合资金 | F115: 2023年1月-12月 | G115: 0.98 | H115: 建档立卡户每亩补助200元 | I115: 196 | J115: 196元，加快脱贫步伐，群众满意。
A116: 113 | B116: 李庄镇俄湾村 | C116: 吴运山 | D116: 土地流转奖补项目 | E116: 统筹整合资金 | F116: 2023年1月-12月 | G116: 1.79 | H116: 建档立卡户每亩补助200元 | I116: 358 | J116: 358元，加快脱贫步伐，群众满意。
A117: 114 | B117: 李庄镇俄湾村 | C117: 吴长庆 | D117: 土地流转奖补项目 | E117: 统筹整合资金 | F117: 2023年1月-12月 | G117: 1.17 | H117: 建档立卡户每亩补助200元 | I117: 234 | J117: 234元，加快脱贫步伐，群众满意。
A118: 115 | B118: 李庄镇俄湾村 | C118: 李秀荣 | D118: 土地流转奖补项目 | E118: 统筹整合资金 | F118: 2023年1月-12月 | G118: 0.9 | H118: 建档立卡户每亩补助200元 | I118: 180 | J118: 180元，加快脱贫步伐，群众满意。
A119: 116 | B119: 李庄镇俄湾村 | C119: 吴进平 | D119: 土地流转奖补项目 | E119: 统筹整合资金 | F119: 2023年1月-12月 | G119: 1.58 | H119: 建档立卡户每亩补助200元 | I119: 316 | J119: 316元，加快脱贫步伐，群众满意。
A120: 117 | B120: 李庄镇俄湾村 | C120: 吴清学 | D120: 土地流转奖补项目 | E120: 统筹整合资金 | F120: 2023年1月-12月 | G120: 1.59 | H120: 建档立卡户每亩补助200元 | I120: 318 | J120: 318元，加快脱贫步伐，群众满意。
A121: 118 | B121: 李庄镇俄湾村 | C121: 刘秀娥 | D121: 土地流转奖补项目 | E121: 统筹整合资金 | F121: 2023年1月-12月 | G121: 1.54 | H121: 建档立卡户每亩补助200元 | I121: 308 | J121: 308元，加快脱贫步伐，群众满意。
A122: 119 | B122: 李庄镇俄湾村 | C122: 曹志敏 | D122: 土地流转奖补项目 | E122: 统筹整合资金 | F122: 2023年1月-12月 | G122: 1.74 | H122: 建档立卡户每亩补助200元 | I122: 348 | J122: 348元，加快脱贫步伐，群众满意。
A123: 120 | B123: 李庄镇俄湾村 | C123: 吴其良 | D123: 土地流转奖补项目 | E123: 统筹整合资金 | F123: 2023年1月-12月 | G123: 1.26 | H123: 建档立卡户每亩补助200元 | I123: 252 | J123: 252元，加快脱贫步伐，群众满意。
A124: 121 | B124: 李庄镇俄湾村 | C124: 曹志勇 | D124: 土地流转奖补项目 | E124: 统筹整合资金 | F124: 2023年1月-12月 | G124: 1.11 | H124: 建档立卡户每亩补助200元 | I124: 222 | J124: 222元，加快脱贫步伐，群众满意。
A125: 122 | B125: 李庄镇俄湾村 | C125: 吴桂立 | D125: 土地流转奖补项目 | E125: 统筹整合资金 | F125: 2023年1月-12月 | G125: 1.47 | H125: 建档立卡户每亩补助200元 | I125: 294 | J125: 294元，加快脱贫步伐，群众满意。
A126: 123 | B126: 李庄镇俄湾村 | C126: 吴清增 | D126: 土地流转奖补项目 | E126: 统筹整合资金 | F126: 2023年1月-12月 | G126: 1.12 | H126: 建档立卡户每亩补助200元 | I126: 224 | J126: 224元，加快脱贫步伐，群众满意。
A127: 124 | B127: 李庄镇俄湾村 | C127: 吴长站 | D127: 土地流转奖补项目 | E127: 统筹整合资金 | F127: 2023年1月-12月 | G127: 1.19 | H127: 建档立卡户每亩补助200元 | I127: 238 | J127: 238元，加快脱贫步伐，群众满意。
A128: 125 | B128: 李庄镇俄湾村 | C128: 吴良学 | D128: 土地流转奖补项目 | E128: 统筹整合资金 | F128: 2023年1月-12月 | G128: 1.59 | H128: 建档立卡户每亩补助200元 | I128: 318 | J128: 318元，加快脱贫步伐，群众满意。
A129: 126 | B129: 李庄镇南曹村 | C129: 杜秀荣 | D129: 土地流转奖补项目 | E129: 统筹整合资金 | F129: 2023年1月-12月 | G129: 4 | H129: 建档立卡户每亩补助200元 | I129: 800 | J129: 800元，加快脱贫步伐，群众满意。
A130: 127 | B130: 李庄镇南曹村 | C130: 张鹏飞 | D130: 土地流转奖补项目 | E130: 统筹整合资金 | F130: 2023年1月-12月 | G130: 2 | H130: 建档立卡户每亩补助200元 | I130: 400 | J130: 400元，加快脱贫步伐，群众满意。
A131: 128 | B131: 李庄镇南曹村 | C131: 魏克相 | D131: 土地流转奖补项目 | E131: 统筹整合资金 | F131: 2023年1月-12月 | G131: 11.22 | H131: 建档立卡户每亩补助200元 | I131: 2244 | J131: 2244元，加快脱贫步伐，群众满意。
A132: 129 | B132: 李庄镇南曹村 | C132: 李政杰 | D132: 土地流转奖补项目 | E132: 统筹整合资金 | F132: 2023年1月-12月 | G132: 8 | H132: 建档立卡户每亩补助200元 | I132: 1600 | J132: 1600元，加快脱贫步伐，群众满意。
A133: 130 | B133: 李庄镇南曹村 | C133: 李清江 | D133: 土地流转奖补项目 | E133: 统筹整合资金 | F133: 2023年1月-12月 | G133: 2 | H133: 建档立卡户每亩补助200元 | I133: 400 | J133: 400元，加快脱贫步伐，群众满意。
A134: 131 | B134: 李庄镇南曹村 | C134: 胡永胜 | D134: 土地流转奖补项目 | E134: 统筹整合资金 | F134: 2023年1月-12月 | G134: 8 | H134: 建档立卡户每亩补助200元 | I134: 1600 | J134: 1600元，加快脱贫步伐，群众满意。
A135: 132 | B135: 李庄镇南曹村 | C135: 张宝珠 | D135: 土地流转奖补项目 | E135: 统筹整合资金 | F135: 2023年1月-12月 | G135: 5 | H135: 建档立卡户每亩补助200元 | I135: 1000 | J135: 1000元，加快脱贫步伐，群众满意。
A136: 133 | B136: 李庄镇南曹村 | C136: 张小阳 | D136: 土地流转奖补项目 | E136: 统筹整合资金 | F136: 2023年1月-12月 | G136: 3 | H136: 建档立卡户每亩补助200元 | I136: 600 | J136: 600元，加快脱贫步伐，群众满意。
A137: 134 | B137: 李庄镇竹岗村 | C137: 海文良 | D137: 土地流转奖补项目 | E137: 统筹整合资金 | F137: 2023年1月-12月 | G137: 2.4 | H137: 建档立卡户每亩补助200元 | I137: 480 | J137: 480元，加快脱贫步伐，群众满意。 | K137: 对 7户流转土地7.33亩的经营主体每亩300元进行奖补，对建档立卡户每亩奖补200元，实现增收脱贫
A138: 135 | B138: 李庄镇竹岗村 | C138: 张海云 | D138: 土地流转奖补项目 | E138: 统筹整合资金 | F138: 2023年1月-12月 | G138: 0.41 | H138: 建档立卡户每亩补助200元 | I138: 82 | J138: 82元，加快脱贫步伐，群众满意。
A139: 136 | B139: 李庄镇竹岗村 | C139: 白文中 | D139: 土地流转奖补项目 | E139: 统筹整合资金 | F139: 2023年1月-12月 | G139: 0.62 | H139: 建档立卡户每亩补助200元 | I139: 124 | J139: 124元，加快脱贫步伐，群众满意。
A140: 137 | B140: 李庄镇竹岗村 | C140: 王纪昌 | D140: 土地流转奖补项目 | E140: 统筹整合资金 | F140: 2023年1月-12月 | G140: 0.6 | H140: 建档立卡户每亩补助200元 | I140: 120 | J140: 120元，加快脱贫步伐，群众满意。
A141: 138 | B141: 李庄镇竹岗村 | C141: 朱广阁 | D141: 土地流转奖补项目 | E141: 统筹整合资金 | F141: 2023年1月-12月 | G141: 0.5 | H141: 建档立卡户每亩补助200元 | I141: 100 | J141: 100元，加快脱贫步伐，群众满意。
A142: 139 | B142: 李庄镇竹岗村 | C142: 王桂巧 | D142: 土地流转奖补项目 | E142: 统筹整合资金 | F142: 2023年1月-12月 | G142: 1.6 | H142: 建档立卡户每亩补助200元 | I142: 320 | J142: 320元，加快脱贫步伐，群众满意。
A143: 140 | B143: 李庄镇竹岗村 | C143: 韩天举 | D143: 土地流转奖补项目 | E143: 统筹整合资金 | F143: 2023年1月-12月 | G143: 1.2 | H143: 建档立卡户每亩补助200元 | I143: 240 | J143: 240元，加快脱贫步伐，群众满意。
A144: 141 | B144: 李庄镇朱寨村 | C144: 张德均 | D144: 土地流转奖补项目 | E144: 统筹整合资金 | F144: 2023年1月-12月 | G144: 0.48 | H144: 建档立卡户每亩补助200元 | I144: 96 | J144: 96元，加快脱贫步伐，群众满意。 | K144: 对72户流转土地 97.009 亩的经营主体每亩300元进行奖补，对建档立卡户每亩奖补200元，实现增收脱贫
A145: 142 | B145: 李庄镇朱寨村 | C145: 张洪书 | D145: 土地流转奖补项目 | E145: 统筹整合资金 | F145: 2023年1月-12月 | G145: 0.6 | H145: 建档立卡户每亩补助200元 | I145: 120 | J145: 120元，加快脱贫步伐，群众满意。
A146: 143 | B146: 李庄镇朱寨村 | C146: 张怀领 | D146: 土地流转奖补项目 | E146: 统筹整合资金 | F146: 2023年1月-12月 | G146: 0.36 | H146: 建档立卡户每亩补助200元 | I146: 72 | J146: 72元，加快脱贫步伐，群众满意。
A147: 144 | B147: 李庄镇朱寨村 | C147: 张永祥 | D147: 土地流转奖补项目 | E147: 统筹整合资金 | F147: 2023年1月-12月 | G147: 2.22 | H147: 建档立卡户每亩补助200元 | I147: =G147*200 -> 444 | J147: =I147&"元，加快脱贫步伐，群众满意。" -> 444元，加快脱贫步伐，群众满意。
A148: 145 | B148: 李庄镇朱寨村 | C148: 张之茂 | D148: 土地流转奖补项目 | E148: 统筹整合资金 | F148: 2023年1月-12月 | G148: 0.75 | H148: 建档立卡户每亩补助200元 | I148: 150 | J148: 150元，加快脱贫步伐，群众满意。
A149: 146 | B149: 李庄镇朱寨村 | C149: 张之有 | D149: 土地流转奖补项目 | E149: 统筹整合资金 | F149: 2023年1月-12月 | G149: 1.25 | H149: 建档立卡户每亩补助200元 | I149: 250 | J149: 250元，加快脱贫步伐，群众满意。
A150: 147 | B150: 李庄镇朱寨村 | C150: 张洪连 | D150: 土地流转奖补项目 | E150: 统筹整合资金 | F150: 2023年1月-12月 | G150: 0.6 | H150: 建档立卡户每亩补助200元 | I150: 120 | J150: 120元，加快脱贫步伐，群众满意。
A151: 148 | B151: 李庄镇朱寨村 | C151: 张之南 | D151: 土地流转奖补项目 | E151: 统筹整合资金 | F151: 2023年1月-12月 | G151: 0.92 | H151: 建档立卡户每亩补助200元 | I151: 184 | J151: 184元，加快脱贫步伐，群众满意。
A152: 149 | B152: 李庄镇朱寨村 | C152: 张之有 | D152: 土地流转奖补项目 | E152: 统筹整合资金 | F152: 2023年1月-12月 | G152: 1.38 | H152: 建档立卡户每亩补助200元 | I152: 276 | J152: 276元，加快脱贫步伐，群众满意。
A153: 150 | B153: 李庄镇朱寨村 | C153: 张之宝 | D153: 土地流转奖补项目 | E153: 统筹整合资金 | F153: 2023年1月-12月 | G153: 0.92 | H153: 建档立卡户每亩补助200元 | I153: 184 | J153: 184元，加快脱贫步伐，群众满意。
A154: 151 | B154: 李庄镇朱寨村 | C154: 张洪前 | D154: 土地流转奖补项目 | E154: 统筹整合资金 | F154: 2023年1月-12月 | G154: 2.3 | H154: 建档立卡户每亩补助200元 | I154: 460 | J154: 460元，加快脱贫步伐，群众满意。
A155: 152 | B155: 李庄镇朱寨村 | C155: 张洪立 | D155: 土地流转奖补项目 | E155: 统筹整合资金 | F155: 2023年1月-12月 | G155: 1.84 | H155: 建档立卡户每亩补助200元 | I155: 368 | J155: 368元，加快脱贫步伐，群众满意。
A156: 153 | B156: 李庄镇朱寨村 | C156: 张洪新 | D156: 土地流转奖补项目 | E156: 统筹整合资金 | F156: 2023年1月-12月 | G156: 1.84 | H156: 建档立卡户每亩补助200元 | I156: 368 | J156: 368元，加快脱贫步伐，群众满意。
A157: 154 | B157: 李庄镇朱寨村 | C157: 张之军 | D157: 土地流转奖补项目 | E157: 统筹整合资金 | F157: 2023年1月-12月 | G157: 1.38 | H157: 建档立卡户每亩补助200元 | I157: 276 | J157: 276元，加快脱贫步伐，群众满意。
A158: 155 | B158: 李庄镇朱寨村 | C158: 张德宝 | D158: 土地流转奖补项目 | E158: 统筹整合资金 | F158: 2023年1月-12月 | G158: 2.3 | H158: 建档立卡户每亩补助200元 | I158: 460 | J158: 460元，加快脱贫步伐，群众满意。
A159: 156 | B159: 李庄镇朱寨村 | C159: 张洪社 | D159: 土地流转奖补项目 | E159: 统筹整合资金 | F159: 2023年1月-12月 | G159: 1.9 | H159: 建档立卡户每亩补助200元 | I159: 380 | J159: 380元，加快脱贫步伐，群众满意。
A160: 157 | B160: 李庄镇朱寨村 | C160: 张之磊 | D160: 土地流转奖补项目 | E160: 统筹整合资金 | F160: 2023年1月-12月 | G160: 1.71 | H160: 建档立卡户每亩补助200元 | I160: 342 | J160: 342元，加快脱贫步伐，群众满意。
A161: 158 | B161: 李庄镇朱寨村 | C161: 薛硅英 | D161: 土地流转奖补项目 | E161: 统筹整合资金 | F161: 2023年1月-12月 | G161: 2.28 | H161: 建档立卡户每亩补助200元 | I161: 456 | J161: 456元，加快脱贫步伐，群众满意。
A162: 159 | B162: 李庄镇朱寨村 | C162: 张洪福 | D162: 土地流转奖补项目 | E162: 统筹整合资金 | F162: 2023年1月-12月 | G162: 2.43 | H162: 建档立卡户每亩补助200元 | I162: 486 | J162: 486元，加快脱贫步伐，群众满意。
A163: 160 | B163: 李庄镇朱寨村 | C163: 张洪杰 | D163: 土地流转奖补项目 | E163: 统筹整合资金 | F163: 2023年1月-12月 | G163: 0.38 | H163: 建档立卡户每亩补助200元 | I163: 76 | J163: 76元，加快脱贫步伐，群众满意。
A164: 161 | B164: 李庄镇朱寨村 | C164: 张德玺 | D164: 土地流转奖补项目 | E164: 统筹整合资金 | F164: 2023年1月-12月 | G164: 0.5 | H164: 建档立卡户每亩补助200元 | I164: 100 | J164: 100元，加快脱贫步伐，群众满意。
A165: 162 | B165: 李庄镇朱寨村 | C165: 张洪勇 | D165: 土地流转奖补项目 | E165: 统筹整合资金 | F165: 2023年1月-12月 | G165: 1.6 | H165: 建档立卡户每亩补助200元 | I165: 320 | J165: 320元，加快脱贫步伐，群众满意。
A166: 163 | B166: 李庄镇朱寨村 | C166: 李清梅 | D166: 土地流转奖补项目 | E166: 统筹整合资金 | F166: 2023年1月-12月 | G166: 0.234 | H166: 建档立卡户每亩补助200元 | I166: 46.8 | J166: 46.8元，加快脱贫步伐，群众满意。
A167: 164 | B167: 李庄镇朱寨村 | C167: 张洪民 | D167: 土地流转奖补项目 | E167: 统筹整合资金 | F167: 2023年1月-12月 | G167: 0.078 | H167: 建档立卡户每亩补助200元 | I167: 15.6 | J167: 15.6元，加快脱贫步伐，群众满意。
A168: 165 | B168: 李庄镇朱寨村 | C168: 张之彬 | D168: 土地流转奖补项目 | E168: 统筹整合资金 | F168: 2023年1月-12月 | G168: 0.195 | H168: 建档立卡户每亩补助200元 | I168: 39 | J168: 39元，加快脱贫步伐，群众满意。
A169: 166 | B169: 李庄镇朱寨村 | C169: 潘景卫 | D169: 土地流转奖补项目 | E169: 统筹整合资金 | F169: 2023年1月-12月 | G169: 0.078 | H169: 建档立卡户每亩补助200元 | I169: 15.6 | J169: 15.6元，加快脱贫步伐，群众满意。
A170: 167 | B170: 李庄镇朱寨村 | C170: 朱献申 | D170: 土地流转奖补项目 | E170: 统筹整合资金 | F170: 2023年1月-12月 | G170: 0.25 | H170: 建档立卡户每亩补助200元 | I170: 50 | J170: 50元，加快脱贫步伐，群众满意。
A171: 168 | B171: 李庄镇朱寨村 | C171: 朱献成 | D171: 土地流转奖补项目 | E171: 统筹整合资金 | F171: 2023年1月-12月 | G171: 0.25 | H171: 建档立卡户每亩补助200元 | I171: 50 | J171: 50元，加快脱贫步伐，群众满意。
A172: 169 | B172: 李庄镇朱寨村 | C172: 邵素美 | D172: 土地流转奖补项目 | E172: 统筹整合资金 | F172: 2023年1月-12月 | G172: 2.5 | H172: 建档立卡户每亩补助200元 | I172: 500 | J172: 500元，加快脱贫步伐，群众满意。
A173: 170 | B173: 李庄镇朱寨村 | C173: 朱星元 | D173: 土地流转奖补项目 | E173: 统筹整合资金 | F173: 2023年1月-12月 | G173: 1.21 | H173: 建档立卡户每亩补助200元 | I173: 242 | J173: 242元，加快脱贫步伐，群众满意。
A174: 171 | B174: 李庄镇朱寨村 | C174: 邵长娥 | D174: 土地流转奖补项目 | E174: 统筹整合资金 | F174: 2023年1月-12月 | G174: 0.63 | H174: 建档立卡户每亩补助200元 | I174: 126 | J174: 126元，加快脱贫步伐，群众满意。
A175: 172 | B175: 李庄镇朱寨村 | C175: 朱廷岗 | D175: 土地流转奖补项目 | E175: 统筹整合资金 | F175: 2023年1月-12月 | G175: 1.1 | H175: 建档立卡户每亩补助200元 | I175: 220 | J175: 220元，加快脱贫步伐，群众满意。
A176: 173 | B176: 李庄镇朱寨村 | C176: 李红梅 | D176: 土地流转奖补项目 | E176: 统筹整合资金 | F176: 2023年1月-12月 | G176: 1.52 | H176: 建档立卡户每亩补助200元 | I176: 304 | J176: 304元，加快脱贫步伐，群众满意。
A177: 174 | B177: 李庄镇朱寨村 | C177: 朱廷俊 | D177: 土地流转奖补项目 | E177: 统筹整合资金 | F177: 2023年1月-12月 | G177: 0.4 | H177: 建档立卡户每亩补助200元 | I177: 80 | J177: 80元，加快脱贫步伐，群众满意。
A178: 175 | B178: 李庄镇朱寨村 | C178: 艾茂合 | D178: 土地流转奖补项目 | E178: 统筹整合资金 | F178: 2023年1月-12月 | G178: 0.51 | H178: 建档立卡户每亩补助200元 | I178: 102 | J178: 102元，加快脱贫步伐，群众满意。
A179: 176 | B179: 李庄镇朱寨村 | C179: 艾茂增 | D179: 土地流转奖补项目 | E179: 统筹整合资金 | F179: 2023年1月-12月 | G179: 1.2 | H179: 建档立卡户每亩补助200元 | I179: 240 | J179: 240元，加快脱贫步伐，群众满意。
A180: 177 | B180: 李庄镇朱寨村 | C180: 刘红玲 | D180: 土地流转奖补项目 | E180: 统筹整合资金 | F180: 2023年1月-12月 | G180: 3.24 | H180: 建档立卡户每亩补助200元 | I180: 648 | J180: 648元，加快脱贫步伐，群众满意。
A181: 178 | B181: 李庄镇朱寨村 | C181: 张之岩 | D181: 土地流转奖补项目 | E181: 统筹整合资金 | F181: 2023年1月-12月 | G181: 1.512 | H181: 建档立卡户每亩补助200元 | I181: 302.4 | J181: 302.4元，加快脱贫步伐，群众满意。
A182: 179 | B182: 李庄镇朱寨村 | C182: 张怀洗 | D182: 土地流转奖补项目 | E182: 统筹整合资金 | F182: 2023年1月-12月 | G182: 0.7 | H182: 建档立卡户每亩补助200元 | I182: 140 | J182: 140元，加快脱贫步伐，群众满意。
A183: 180 | B183: 李庄镇朱寨村 | C183: 张德凯 | D183: 土地流转奖补项目 | E183: 统筹整合资金 | F183: 2023年1月-12月 | G183: 1.08 | H183: 建档立卡户每亩补助200元 | I183: 216 | J183: 216元，加快脱贫步伐，群众满意。
A184: 181 | B184: 李庄镇朱寨村 | C184: 韩秀英 | D184: 土地流转奖补项目 | E184: 统筹整合资金 | F184: 2023年1月-12月 | G184: 1.08 | H184: 建档立卡户每亩补助200元 | I184: 216 | J184: 216元，加快脱贫步伐，群众满意。
A185: 182 | B185: 李庄镇朱寨村 | C185: 艾茂洋 | D185: 土地流转奖补项目 | E185: 统筹整合资金 | F185: 2023年1月-12月 | G185: 1.08 | H185: 建档立卡户每亩补助200元 | I185: 216 | J185: 216元，加快脱贫步伐，群众满意。
A186: 183 | B186: 李庄镇朱寨村 | C186: 张洪康 | D186: 土地流转奖补项目 | E186: 统筹整合资金 | F186: 2023年1月-12月 | G186: 0.648 | H186: 建档立卡户每亩补助200元 | I186: 129.6 | J186: 129.6元，加快脱贫步伐，群众满意。
A187: 184 | B187: 李庄镇朱寨村 | C187: 张之重 | D187: 土地流转奖补项目 | E187: 统筹整合资金 | F187: 2023年1月-12月 | G187: 1.3 | H187: 建档立卡户每亩补助200元 | I187: 260 | J187: 260元，加快脱贫步伐，群众满意。
A188: 185 | B188: 李庄镇朱寨村 | C188: 张之伦 | D188: 土地流转奖补项目 | E188: 统筹整合资金 | F188: 2023年1月-12月 | G188: 0.216 | H188: 建档立卡户每亩补助200元 | I188: 43.2 | J188: 43.2元，加快脱贫步伐，群众满意。
A189: 186 | B189: 李庄镇朱寨村 | C189: 张之祥 | D189: 土地流转奖补项目 | E189: 统筹整合资金 | F189: 2023年1月-12月 | G189: 0.648 | H189: 建档立卡户每亩补助200元 | I189: 129.6 | J189: 129.6元，加快脱贫步伐，群众满意。
A190: 187 | B190: 李庄镇朱寨村 | C190: 张德跃 | D190: 土地流转奖补项目 | E190: 统筹整合资金 | F190: 2023年1月-12月 | G190: 1.02 | H190: 建档立卡户每亩补助200元 | I190: 204 | J190: 204元，加快脱贫步伐，群众满意。
A191: 188 | B191: 李庄镇朱寨村 | C191: 朱汉嘉 | D191: 土地流转奖补项目 | E191: 统筹整合资金 | F191: 2023年1月-12月 | G191: 1.3 | H191: 建档立卡户每亩补助200元 | I191: 260 | J191: 260元，加快脱贫步伐，群众满意。
A192: 189 | B192: 李庄镇朱寨村 | C192: 朱献勋 | D192: 土地流转奖补项目 | E192: 统筹整合资金 | F192: 2023年1月-12月 | G192: 1.74 | H192: 建档立卡户每亩补助200元 | I192: 348 | J192: 348元，加快脱贫步伐，群众满意。
A193: 190 | B193: 李庄镇朱寨村 | C193: 李东叶 | D193: 土地流转奖补项目 | E193: 统筹整合资金 | F193: 2023年1月-12月 | G193: 2.52 | H193: 建档立卡户每亩补助200元 | I193: 504 | J193: 504元，加快脱贫步伐，群众满意。
A194: 191 | B194: 李庄镇朱寨村 | C194: 朱现有 | D194: 土地流转奖补项目 | E194: 统筹整合资金 | F194: 2023年1月-12月 | G194: 1.47 | H194: 建档立卡户每亩补助200元 | I194: 294 | J194: 294元，加快脱贫步伐，群众满意。
A195: 192 | B195: 李庄镇朱寨村 | C195: 郭玉兰 | D195: 土地流转奖补项目 | E195: 统筹整合资金 | F195: 2023年1月-12月 | G195: 3.94 | H195: 建档立卡户每亩补助200元 | I195: 788 | J195: 788元，加快脱贫步伐，群众满意。
A196: 193 | B196: 李庄镇朱寨村 | C196: 朱兆娥 | D196: 土地流转奖补项目 | E196: 统筹整合资金 | F196: 2023年1月-12月 | G196: 0.9 | H196: 建档立卡户每亩补助200元 | I196: 180 | J196: 180元，加快脱贫步伐，群众满意。
A197: 194 | B197: 李庄镇朱寨村 | C197: 朱现有 | D197: 土地流转奖补项目 | E197: 统筹整合资金 | F197: 2023年1月-12月 | G197: 0.7 | H197: 建档立卡户每亩补助200元 | I197: 140 | J197: 140元，加快脱贫步伐，群众满意。
A198: 195 | B198: 李庄镇朱寨村 | C198: 朱星林 | D198: 土地流转奖补项目 | E198: 统筹整合资金 | F198: 2023年1月-12月 | G198: 2.1 | H198: 建档立卡户每亩补助200元 | I198: 420 | J198: 420元，加快脱贫步伐，群众满意。
A199: 196 | B199: 李庄镇朱寨村 | C199: 白文叶 | D199: 土地流转奖补项目 | E199: 统筹整合资金 | F199: 2023年1月-12月 | G199: 1.75 | H199: 建档立卡户每亩补助200元 | I199: 350 | J199: 350元，加快脱贫步伐，群众满意。
A200: 197 | B200: 李庄镇朱寨村 | C200: 朱廷桥 | D200: 土地流转奖补项目 | E200: 统筹整合资金 | F200: 2023年1月-12月 | G200: 0.81 | H200: 建档立卡户每亩补助200元 | I200: 162 | J200: 162元，加快脱贫步伐，群众满意。
... 606 more rows

Sheet Sheet3
